Cogmind - Beta 15 @@@ ROGUE MODE // 2025.08.25 @ 10:31:10 Player: 7604 Result: Destroyed by X0-MUK(R) with Subdweller Beam Cannon Performance ------------- Evolutions (0) 0 Regions Visited (2) 400 Robots Destroyed (27) 135 Value Destroyed (581) 581 Prototype IDs (2) 40 Alien Tech Used (0) 0 Bonus (0) 0 TOTAL SCORE: 1156 Bonus ------- None Cogmind --------- Core Integrity 0/250 Matter 215/300 Energy 186/200 System Corruption 0% Temperature Warm (190) Movement Treading (480) Ox4 Location -10/Subcaves Parts ------- > --- POWER (1) -------- Subdweller Power Source > --- PROPULSION (2) --- Light Treads > --- UTILITY (2) ------ Huge Storage Unit Improved Terrain Scanner > --- WEAPON (2) ------- Hammer > --- INVENTORY (25) --- Ion Engine Subdweller Power Source Light Treads Light Treads Wheel Subdweller Monowheel Subdweller Monowheel Improved Heat Sink Seismic Detector ECM Suite Medium Laser Assault Rifle Assault Rifle Grenade Launcher Dirty Datajack (20) Datajack Mining Laser Peak State ------------ > --- POWER ------------ Subdweller Power Source > --- PROPULSION ------- Light Treads Light Treads > --- UTILITY ---------- Huge Storage Unit Improved Terrain Scanner > --- WEAPON ----------- Beam Cannon Subdweller Machine Gun > --- INVENTORY -------- Ion Engine Subdweller Power Source Light Treads Light Treads Wheel Subdweller Monowheel Improved Heat Sink Seismic Detector ECM Suite Medium Laser Assault Rifle Assault Rifle Grenade Launcher Dirty Datajack Datajack Mining Laser Hammer [Rating: 13] Favorites ----------- Power Subdweller Power Source Engine Subdweller Power Source Power Core Light Nuclear Core Propulsion Light Treads Treads Light Treads Utility Seismic Detector Device Seismic Detector Storage Huge Storage Unit Weapon Assault Rifle Energy Cannon Beam Cannon Ballistic Gun Assault Rifle Launcher Grenade Launcher Special Weapon Mining Laser Impact Weapon Hammer Build | -11 -10 -10 ------- Run | Yrd Mat Sub Slots Evolved . | . . . Power . | . . . Propulsion . | . . . Utility . | . . . Weapon . | . . . Parts Attached 21 | 7 5 9 Power 4 | 1 1 2 Engine 3 | 1 . 2 Core 1 | . 1 . Reactor . | . . . Propulsion 4 | 2 . 2 Treads 4 | 2 . 2 Leg . | . . . Wheel . | . . . Hover . | . . . Flight . | . . . Utility 5 | 2 3 . Device 3 | 1 2 . Storage 2 | 1 1 . Processor . | . . . Hackware . | . . . Protection . | . . . Artifact . | . . . Weapon 8 | 2 1 5 Energy Gun . | . . . Energy Cannon 2 | . . 2 Ballistic Gun 3 | 2 . 1 Ballistic Cannon . | . . . Launcher 1 | . . 1 Special Weapon 1 | . 1 . Impact Weapon 1 | . . 1 Slashing Weapon . | . . . Piercing Weapon . | . . . Special Melee Weapon . | . . . Unidentified Prototypes . | . . . Parts Lost 7 | . . 7 Power 1 | . . 1 Propulsion 3 | . . 3 Utility . | . . . Weapon 3 | . . 3 Highest Loss Streak 3 | . . 3 To Critical Strikes . | . . . Average Backups 12 | 1 8 16 Power 1 | . 1 1 Propulsion 2 | . 1 4 Utility 2 | . 1 3 Weapon 4 | 1 3 6 Tool/Special . | . . . Unused Backups 12 | . 2 10 Power 2 | . 1 1 Propulsion 5 | . . 5 Utility 1 | . . 1 Weapon 2 | . 1 1 Tool/Special 2 | . . 2 Average Slot Usage (%) 99 | . 100 99 Engine 8 | . 8 9 Core 4 | . 5 4 Treads 27 | . 28 27 Device 14 | . 14 14 Storage 14 | . 14 14 Energy Cannon 6 | . . 11 Ballistic Gun 20 | . 26 15 Peak Build Rating 13 | 7 12 13 Average Rating 9 | 5 8 11 On Entrance 5 | . 7 10 Naked Turns . | . . . Heaviest Build 93 | 15 90 93 Greatest Support 40 | 40 40 40 Greatest Overweight (x) 2 | . 2 2 Average Overweight (x) 1 | . . 2 Largest Inventory Capacity 25 | 8 25 25 Average Capacity 19 | 7 13 25 Most Carried 19 | 4 15 19 Average Carried 12 | 1 8 16 Final Capacity 25 | 8 25 25 Final Carried 17 | 4 15 17 Class Distribution -------------------- 74% | Mutant 25% | Scavenger-Mutant Dominant Class ---------------- Mutant | -10/Materials Mutant | -10/Subcaves Resources | -11 -10 -10 ----------- Run | Yrd Mat Sub Matter Collected 1025 | 300 520 205 Remotely . | . . . Salvage Created 922 | 132 537 253 Parts 59 | 10 33 16 Haulers Intercepted 2 | . 2 . Recyclers Shooed . | . . . Parts Field Recycled . | . . . Retrieved Matter . | . . . Parts Self-Destructed 6 | . . 6 Prevented . | . . . Kills | -11 -10 -10 ------- Run | Yrd Mat Sub Combat Hostiles Destroyed 16 | . 9 7 Melee 1 | . . 1 Guns 13 | . 9 4 Cannons 1 | . . 1 AOE 1 | . . 1 Classes Destroyed 9 | 2 5 2 Worker 2 | . 2 . Tunneler 3 | 3 . . Hauler 2 | . 2 . Recycler 1 | 1 . . Watcher 3 | . 3 . Swarmer 5 | . 3 2 Grunt 6 | . 6 . Artisan 1 | . . 1 Subdweller 5 | . . 5 Best Kill Streak 3 | 3 2 2 Combat Bots Only 2 | . 2 2 Max Kills in Single Turn 2 | 1 2 1 Gunslinging . | . . . Exploded 1 | . . 1 Melee 1 | . . 1 Uniques/NPCs Destroyed . | . . . Combat | -11 -10 -10 -------- Run | Yrd Mat Sub Hostile Shots Fired 113 | . 29 84 Missed 30 | . 5 25 Hits 83 | . 24 59 Projectile 83 | . 24 59 Critical Strikes 1 | . . 1 Damage Taken 1448 | . 283 1165 Core 266 | . 20 246 Absorbed by Shields . | . . . Core Remaining (%) 100 | 100 . . Volleys Fired 116 | 5 71 40 Largest 2 | 2 2 2 Hottest 120 | 40 100 120 Shots Fired 207 | 10 131 66 Gun 154 | 10 120 24 Cannon 39 | . . 39 Launcher 3 | . . 3 Special 11 | . 11 . Kinetic 154 | 10 120 24 Thermal 50 | . 11 39 Explosive 3 | . . 3 Electromagnetic . | . . . Robot Hit Streak 15 | 3 9 15 Robot Miss Streak 4 | 1 4 1 Penetration Max . | . . . Secondary Targets 2 | . 2 . Max Gunslinging Chain 1 | . 1 . Shots Hit Robots 125 | 5 67 53 Core Hits 45 | 4 27 14 Critical Kills . | . . . Critical Parts Destroyed 3 | . 2 1 Critical Strikes 3 | . 2 1 Destroy 2 | . 2 . Smash 1 | . . 1 Melee Attacks 2 | . . 2 Impact 2 | . . 2 Slashing . | . . . Piercing . | . . . Sneak Attacks . | . . . Combat Hostiles . | . . . Follow-up Attacks . | . . . Damage Inflicted 1867 | 65 873 929 Guns 1225 | 65 873 287 Cannons 456 | . . 456 Explosions 141 | . . 141 Melee 45 | . . 45 Ramming . | . . . Kinetic 1225 | 65 873 287 Thermal 456 | . . 456 Explosive 141 | . . 141 Electromagnetic . | . . . Impact 45 | . . 45 Slashing . | . . . Piercing . | . . . Highest Corruption . | . . . Average Corruption . | . . . Corruption Purged . | . . . Corruption Blocked . | . . . Overload Shots . | . . . Overflow Damage 15 | . . 15 Projectiles . | . . . Explosions . | . . . Melee 15 | . . 15 Knockbacks 1 | . . 1 Impact 1 | . . 1 Kinetic . | . . . Secondary . | . . . Self-Inflicted Damage 32 | . . 32 Shots 1 | . . 1 Rammed . | . . . Targets Rammed . | . . . Kicked . | . . . Crushed . | . . . Highest Temperature 224 | . 28 224 Average Temperature 18 | . 11 202 Received Heat Transfer 467 | . 129 338 Siege Activations . | . . . Martial Activations . | . . . Shielding Activations . | . . . Robots Disrupted . | . . . Combat Hostiles . | . . . Robots Corrupted . | . . . Combat Hostiles . | . . . Parts Fried 1 | . . 1 Impact Corruptions 1 | . . 1 Robots Melted . | . . . Combat Hostiles . | . . . Parts Melted . | . . . Heat Transferred 962 | . . 962 Parts Sabotaged . | . . . Parts Stolen . | . . . Parts Stripped . | . . . Power Chain Reactions . | . . . Alert | -11 -10 -10 ------- Run | Yrd Mat Sub Maximum Alert Level . | . . . Low Security (%) 100 | 100 100 . Level 1 . | . . . Level 2 . | . . . Level 3 . | . . . Level 4 . | . . . Level 5 . | . . . High Security . | . . . Max Security . | . . . Peak Influence 60 | 10 60 . Initial . | . . . Average 18 | 1 20 . Influence Increases 500 | 20 395 85 Destroy 0b10 Robot/C 220 | . 180 40 Destroy 0b10 Robot/NC 55 | 20 35 . Destroy Leader 40 | . 40 . Successful Hack 23 | . 23 . Select Force Hacks 60 | . 60 . Disable Machine 30 | . 30 . Destroy Structure 12 | . 12 . Lose Combat Pursuer 60 | . 15 45 Influence Decreases 465 | 20 365 80 Entered New Map 15 | . . 15 Time Decay 420 | 20 365 35 Lost Part 30 | . . 30 Squads Dispatched 2 | . 2 . Investigation 2 | . 2 . Extermination . | . . . Reinforcement . | . . . Assault . | . . . Garrison . | . . . Intercept . | . . . Searches Triggered . | . . . Construction Impeded . | . . . Haulers Reinforced . | . . . Active Scanning Responses . | . . . Cargo Convoy Interrupts . | . . . Stealth | -11 -10 -10 --------- Run | Yrd Mat Sub Distress Signals 2 | . 2 . Communications Jammed . | . . . Distress Signals . | . . . Times Spotted 28 | . 19 9 Peak Tracking Total 4 | . 3 4 Tactical Retreats 2 | . 1 1 Traps | -11 -10 -10 ------- Run | Yrd Mat Sub Traps Triggered 2 | . . 2 Indirectly . | . . . Trap Hack Attempts . | . . . Triggered . | . . . Disarmed . | . . . Reprogrammed . | . . . Reused . | . . . Traps Extracted . | . . . Installed . | . . . Triggered . | . . . Machines | -11 -10 -10 ---------- Run | Yrd Mat Sub Machines Disabled 2 | . 2 . Max in Single Turn 1 | . 1 . Machines Repaired . | . . . Machines Dismantled . | . . . Machines Sabotaged . | . . . Overloaded Fab Kills . | . . . Hacking | -11 -10 -10 --------- Run | Yrd Mat Sub Machines Accessed 8 | . 8 . Terminals 6 | . 6 . Fabricators . | . . . Repair Stations . | . . . Recycling Units 2 | . 2 . Scanalyzers . | . . . Garrison Access . | . . . Total Hacks 26 | . 26 . Successful 14 | . 14 . Failed 12 | . 12 . Catastrophic 1 | . 1 . Database Lockouts . | . . . Manual 20 | . 20 . Terminals 20 | . 20 . Fabricators . | . . . Repair Stations . | . . . Recycling Units 6 | . 6 . Scanalyzers . | . . . Garrison Access . | . . . Terminal Hacks 4 | . 4 . Part Schematic 1 | . 1 . Robot Analysis 1 | . 1 . Prototype ID Bank 1 | . 1 . Locate Traps 1 | . 1 . Fabricator Hacks . | . . . Repair Station Hacks . | . . . Recycling Unit Hacks 1 | . 1 . Retrieve Components 1 | . 1 . Scanalyzer . | . . . Garrison Access Hacks . | . . . Unauthorized Hacks 9 | . 9 . Terminals 7 | . 7 . Botnet 1 | . 1 . Operators 1 | . 1 . Skim 5 | . 5 . Fabricators . | . . . Repair Stations . | . . . Recycling Units 2 | . 2 . Tunnel 2 | . 2 . Scanalyzers . | . . . Garrison Access . | . . . Data Cores Recovered . | . . . Used . | . . . Hacking Detections 7 | . 7 . Full Trace Events . | . . . Feedback Events . | . . . Feedback Blocked . | . . . Robot Schematics Acquired . | . . . Robots Built . | . . . Authchips . | . . . Time . | . . . Total Robot Build Rating . | . . . Part Schematics Acquired 1 | . 1 . Parts Built . | . . . Authchips . | . . . Time . | . . . Total Part Build Rating . | . . . Parts Repaired . | . . . Time . | . . . Parts Recycled . | . . . Recycled Matter . | . . . Retrieved Matter . | . . . Retrieved Components 5 | . 5 . Parts Scanalyzed . | . . . Part Schematics Acquired . | . . . Parts Damaged . | . . . Bothacking | -11 -10 -10 ------------ Run | Yrd Mat Sub Used RIF Installer . | . . . Robots Hacked . | . . . Non-combat . | . . . Combat . | . . . Robot Hacks Applied . | . . . Relay Couplers Released . | . . . Fabnet Peak Effective % . | . . . Robots Rewired . | . . . Allies Hacked . | . . . Hacks Repelled . | . . . Allies | -11 -10 -10 -------- Run | Yrd Mat Sub Total Allies . | . . . Largest Group . | . . . Highest-Rated Group . | . . . Highest-Rated Ally . | . . . Total Orders . | . . . Ally Attacks . | . . . Total Damage . | . . . Kills . | . . . Allies Corrupted . | . . . Allies Melted . | . . . Intel | -11 -10 -10 ------- Run | Yrd Mat Sub Active Infowar (turns) 3921 | 60 1616 2245 Terrain 340 | . 21 319 Seismic 3581 | 60 1595 1926 Robot Analysis Total 1 | . 1 . Derelict Logs Recovered . | . . . Drone Launches . | . . . Drone Recoveries . | . . . Exploration | -11 -10 -10 ------------- Run | Yrd Mat Sub Turns Passed 4090 | 164 1681 2245 Spaces Moved 1301 | 85 656 560 Core 3 | 3 . . Treads 1298 | 82 656 560 Legs . | . . . Wheels . | . . . Hover . | . . . Flight . | . . . Fastest Speed 50 | 50 160 320 Average Speed 244 | 156 191 320 Slowest Speed 320 | 160 320 320 Overloaded Moves . | . . . Propulsion Burnouts . | . . . Robots Hopped . | . . . Potential Cave-ins . | . . . Cave-ins Triggered . | . . . Exploration Rate (%) 40 | 5 86 30 Regions Visited 2 Branch Regions 1 Pre-discovered Areas 3 | . 3 . Known Exits Taken . | . . . Unknown Exits Taken 2 | 1 1 . Scrap Searched . | . . . Spaces Dug 17 | . 11 6 Terrain Destroyed 25 | . 11 14 Melee . | . . . Projectile 13 | . 11 2 AOE 12 | . . 12 Terrain Rammed . | . . . Walls Destroyed . | . . . Machines Disabled . | . . . Actions | -11 -10 -10 --------- Run | Yrd Mat Sub Total 1963 | 103 924 936 Wait 472 | 3 164 305 Move 1299 | 84 655 560 Hop . | . . . Pick Up 23 | 4 13 6 Fast Attach 9 | 7 1 1 Attach 5 | . . 5 Detach 1 | . . 1 Swap 32 | . 16 16 Drop 4 | . 4 . Fire 116 | 5 71 40 Melee 2 | . . 2 Ram . | . . . Kick . | . . . Crush . | . . . Escape Stasis . | . . . Rewire . | . . . Trap . | . . . Miscellaneous . | . . . Route ------- -11/Scrapyard -10/Materials (discovered 5 exits: *Mat x3 / [*Min] / [*Sub]) -10/Subcaves History --------- Turn | Location | Event 8 | -11/Scrapyard | Discovered new exit (range 16) 165 | -11/Scrapyard | Entered Materials 318 | -10/Materials | Build established: Mutant 363 | -10/Materials | Discovered new exit (range 11) 514 | -10/Materials | Discovered new exit (range 13) 698 | -10/Materials | Discovered new exit (range 3) 1230 | -10/Materials | Identified exit to Materials 1299 | -10/Materials | Learned location of Recycling (-8) 1317 | -10/Materials | Loaded intel: 23 trap records 1340 | -10/Materials | Learned Storage garrison access intel 1846 | -10/Materials | Entered Subcaves 2810 | -10/Subcaves | Ambushed by angry Subdweller bent on revenge 2866 | -10/Subcaves | Core integrity fell below 50% 3336 | -10/Subcaves | Build established: Scavenger-Mutant 4086 | -10/Subcaves | Core integrity fell below 20% 4091 | -10/Subcaves | Destroyed by X0-MUK(R) with Subdweller Beam Cannon Last Messages --------------- 03915_ S-10 Pest destroyed. 03917_ Subatomizers dissect the Sub. Beam Cannon, destroying it. 03917_ Destroyed Flight Unit. 03921_ S-10 Pest destroyed. 03931_ Subatomizers dissect the Sub. Monowheel. 03946_ Subatomizers dissect the Sub. Monowheel, destroying it. 04083_ Sub. Machine Gun destroyed. 04084_ 94-OAV(R) suffers critical hit (Smash). 04084_ Destroyed Sub. Power Source. 04084_ 94-OAV(R) system corrupted by crushing effect. 04084_ 94-OAV(R) knocked back. 04085_ Beam Cannon destroyed. 04087_ 94-OAV(R) IFF system glitched. 04089_ Lgt. Treads destroyed. 04089_ Critical hit (Meltdown: +260). 04090_ Sub. Optics fried. 04090_ 94-OAV(R) destroyed. Map ----- +----------------------------------------------------+ | ???????????????????##???# ### #???? | | ????????????????????????# #?## #???? | | ????????????????????????# ####??## #???? | | ????????????????????????# ##???????# ##???? | | ?????????????????######?### ##??????#?? ##????? | | ????????????????## ## #### ##??????????##?????? | | ????????????????# ## ##??????????????????? | | ???????????????## ##??????????? ??????? | | ???????????????# ### #??????????????????? | | ???????????????# #?# #??????????????????? | | ???????????????# ### #??????????????????? | | ??????????????## ## ##??????????????????? | | ?????????????## ### #???????????????????? | | ????????????## #?##### #??????????????????? | | ????????????# #?????# ?????????????????? | | ????????????# #????# ????????????????? | | ????????????## #?????## ???????????????? | | ?????????????## ##?????# ?????????????? | | ???? ###?????## ###???# ## ?????????????? | | ??? ### ##???## ##?? ?????????????? | | ??? #?????####?????????????????? | | ??? ##??????????????????????????? | | ??? ## #???????????????????????????? | | ??? ##?# #########???????????????????? | | ???? ???# R%= ##??????????????????? | | ???? ???#### @& #??????????????????? | | ????? ## ???????# ## ???????????? | | ????? ??## ???????# ## ???????? | | ?????????# ?????#??#; ## ## ## ???????? | | ????????? ?????????######## ####?????????????? | | ???????? ?????? ???????????? ##????????????????? | | ????????????????????#??????? #?????????????????? | | ????????????????????????????####?????????????????? | | ?????????????????????#???????????????????????????? | | ?????????????????????????????????????????????????? | | ?????????????????????????????????????????????????? | | ?????????????????????????????????????????????????? | | ?????????????????????????????????????????????????? | | ?????????????????????????????????????????????????? | | ?????????????????????????????????????????????????? | | ?????????????????????????????????????????????????? | | ?????????????????????????????????????????????????? | | ?????????????????????????????????????????????????? | | ?????????????????????????????????????????????????? | | ?????????????????????????????????????????????????? | | ?????????????????????????????????????????????????? | | ?????????????????????????????????????????????????? | | | | | | | +----------------------------------------------------+ Best States ------------- Heat Dissipation 39 Energy Generation 15 Energy Capacity 250 Matter Stores 300 Matter Capacity 300 Sight Range 16 Terrain Scan Range 16 Terrain Scan Density 10 Evasion (%) 40 Recoil Reduction 2 Item Schematics ----------------- Huge Storage Unit | -10/Materials | Hacked Robot Schematics ------------------ None Fabricated ------------ Nothing Repaired ---------- Nothing Alien Tech Used ----------------- None Achievements -------------- None Challenges ------------ None Game ------ Seed PrecisionGatlingReactor Manual? 0 Play Time 00:16:07 Cumulative 551.6 hours Start 2025.08.25 @ 10:15:34 End 2025.08.25 @ 10:31:10 Sessions 1 Manual Loads 0 Difficulty Rogue Special Mode None Game No. 286 Rogue 223 Adventurer 63 Explorer 0 Win Type - Total 10 Types 8/0/0/1/0/0/1/0/0/0 Lore% 91 Gallery% 84 Achievement% 69 Wizard Run 0 Options --------- Layout 1 ASCII 0 Keyboard 1 Movement Numpad Keybinds 0 Fullscreen 2 Font 24/Terminus Map View 50x35 Zoom Use 0% Tactical HUD 1 Map Filters NONE Filters NONE Steam 1 RUN: 5f0f4610-0710-4a3b-a59f-7851b0fac0f9